2CCN - Level 2 Cost Centre Name,,9CCN - Level 9 Cost Centre Name,9CCC - Level 9 Cost Centre Code,9AN - Level 9 Account Name,9AC - Level 9 Account Code,Date posted,Date of transaction,Merchant Name,MerchantCity,Originating Account Name,Originating Account Number,MCC/SIC Code,MCC Description,Original Amount,Currency,Conversion Rate,Billed Amount,DebitCredit,ReferenceNbr,Statement Cycle,AccountName
Gloucester City Council,23UE,TIC STAMP SALES,LT102,POSTAGES,5400,2016-01-06,2016-01-05,ROYAL MAIL,EDINBURGH,REDACTED,471565******4015,9402,POSTAGE STAMPS,982.8,Pound Sterling (826),1,982.8,Debit,74678586006000235653480,2016-02-02,GLOUCESTER CC
Gloucester City Council,23UE,TOURISM MARKETING,LT100,OTHER MINOR SUPPLIES SERVICES,5590,2016-01-13,2016-01-12,ARGOS LTD,GLOUCESTER,REDACTED,471565******4015,5310,DISCOUNT STORES,45.98,Pound Sterling (826),1,45.98,Debit,74579156013006374573374,2016-02-02,GLOUCESTER CC
Gloucester City Council,23UE,TOURISM MARKETING,LT100,EXHIBITS AND COLLECTIONS,5038,2016-01-20,2016-01-19,GES LIMITED,4.42476E+11,REDACTED,471565******4015,7399,BUSINESS SERVICES NOT ELSEWHERE CLASSIFIED,192.24,Pound Sterling (826),1,192.24,Debit,74313226019000142474839,2016-02-02,GLOUCESTER CC
Gloucester City Council,23UE,TOURISM MARKETING,LT100,ADVERTISING AND PUBLICITY,5702,2016-02-01,2016-01-29,FRITH COLLECTION,4.41723E+11,REDACTED,471565******4015,5971,ART DEALERS AND GALLERIES,195,Pound Sterling (826),1,195,Debit,74998766029604353722995,2016-02-02,GLOUCESTER CC
Gloucester City Council,23UE,GROUP MGR CULT SER & TOURISM,GR102,PUBLIC TRANSPORTATION,4061,2016-02-02,2016-02-01,GWR WEBSALES ECOM,SWINDON,REDACTED,471565******1715,4112,PASSENGER RAILWAYS,187.5,Pound Sterling (826),1,187.5,Debit,74424716032160392274187,2016-02-02,GLOUCESTER CC
Gloucester City Council,23UE,HOMELESSNESS,CH120,BOARD AND LODGING,5515,2016-01-05,2016-01-04,TRAVELODGE WEBSITE,RESERVATION,REDACTED,471565******1443,3615,TRAVELODGE,97,Pound Sterling (826),1,97,Debit,74424716004298122743958,2016-02-02,GLOUCESTER CC
Gloucester City Council,23UE,HOMELESSNESS,CH120,BOARD AND LODGING,5515,2016-01-07,2016-01-06,TRAVELODGE WEBSITE,RESERVATION,REDACTED,471565******1443,3615,TRAVELODGE,53,Pound Sterling (826),1,53,Debit,74424716006298144120795,2016-02-02,GLOUCESTER CC
Gloucester City Council,23UE,HOMELESSNESS,CH120,BOARD AND LODGING,5515,2016-01-18,2016-01-15,TRAVELODGE WEBSITE,RESERVATION,REDACTED,471565******1443,3615,TRAVELODGE,140,Pound Sterling (826),1,140,Debit,74424716015298135734801,2016-02-02,GLOUCESTER CC
Gloucester City Council,23UE,HOMELESSNESS,CH120,BOARD AND LODGING,5515,2016-01-18,2016-01-16,TRAVELODGE WEBSITE,RESERVATION,REDACTED,471565******1443,3615,TRAVELODGE,93,Pound Sterling (826),1,93,Debit,74424716016298148674845,2016-02-02,GLOUCESTER CC
Gloucester City Council,23UE,HOMELESSNESS,CH120,BOARD AND LODGING,5515,2016-01-18,2016-01-16,TRAVELODGE WEBSITE,RESERVATION,REDACTED,471565******1443,3615,TRAVELODGE,95,Pound Sterling (826),1,95,Debit,74424716016298148636190,2016-02-02,GLOUCESTER CC
Gloucester City Council,23UE,HOMELESSNESS,CH120,BOARD AND LODGING,5515,2016-01-19,2016-01-18,TRAVELODGE WEBSITE,RESERVATION,REDACTED,471565******1443,3615,TRAVELODGE,117,Pound Sterling (826),1,117,Debit,74424716018298168238990,2016-02-02,GLOUCESTER CC
Gloucester City Council,23UE,HOMELESSNESS,CH120,BOARD AND LODGING,5515,2016-01-21,2016-01-20,TRAVELODGE WEBSITE,RESERVATION,REDACTED,471565******1443,3615,TRAVELODGE,74,Pound Sterling (826),1,74,Debit,74424716020298188077531,2016-02-02,GLOUCESTER CC
Gloucester City Council,23UE,HOMELESSNESS,CH120,BOARD AND LODGING,5515,2016-01-22,2016-01-21,TRAVELODGE WEBSITE,RESERVATION,REDACTED,471565******1443,3615,TRAVELODGE,47,Pound Sterling (826),1,47,Debit,74424716021298198317231,2016-02-02,GLOUCESTER CC
Gloucester City Council,23UE,HOMELESSNESS,CH120,BOARD AND LODGING,5350,2016-01-22,2016-01-21,NATIONAL EXPRESS LIMITED,BIRMINGHAM,REDACTED,471565******1443,4131,BUS LINES  CHARTERS  TOUR BUSES,32.2,Pound Sterling (826),1,32.2,Debit,74929326022006610201389,2016-02-02,GLOUCESTER CC
Gloucester City Council,23UE,HOMELESSNESS,CH120,BOARD AND LODGING,5350,2016-01-22,2016-01-21,NATIONAL EXPRESS LIMITED,BIRMINGHAM,REDACTED,471565******1443,4131,BUS LINES  CHARTERS  TOUR BUSES,36.5,Pound Sterling (826),1,36.5,Debit,74929326022006610190798,2016-02-02,GLOUCESTER CC
Gloucester City Council,23UE,HOMELESSNESS,CH120,BOARD AND LODGING,5515,2016-01-25,2016-01-22,TRAVELODGE WEBSITE,RESERVATION,REDACTED,471565******1443,3615,TRAVELODGE,163,Pound Sterling (826),1,163,Debit,74424716022298108793199,2016-02-02,GLOUCESTER CC
Gloucester City Council,23UE,HOMELESSNESS,CH120,BOARD AND LODGING,5515,2016-01-25,2016-01-22,TRAVELODGE WEBSITE,RESERVATION,REDACTED,471565******1443,3615,TRAVELODGE,282,Pound Sterling (826),1,282,Debit,74424716022298108789957,2016-02-02,GLOUCESTER CC
Gloucester City Council,23UE,HOMELESSNESS,CH120,BOARD AND LODGING,5515,2016-01-26,2016-01-25,TRAVELODGE WEBSITE,RESERVATION,REDACTED,471565******1443,3615,TRAVELODGE,61,Pound Sterling (826),1,61,Debit,74424716025298142124986,2016-02-02,GLOUCESTER CC
Gloucester City Council,23UE,DOCKS COMPLEX - SERVICES,RB100,OPERATIONAL EQUIPMENT <5000,5012,2016-01-07,2016-01-06,B & Q,GLOUCESTER GL,REDACTED,471565******8223,5211,LUMBER AND BUILDING MATERIALS STORES,103.59,Pound Sterling (826),1,103.59,Debit,74579156007000871546783,2016-02-02,GLOUCESTER CC
Gloucester City Council,23UE,DOCKS COMPLEX - CATERING SERVS,RB110,CATERING PROVISIONS -FOOD,5110,2016-01-26,2016-01-25,SAINSBURYS SUPERMA,GLOUCESTER QU,REDACTED,471565******8223,5411,GROCERY STORES  SUPERMARKETS,4.05,Pound Sterling (826),1,4.05,Debit,74579156026001177851247,2016-02-02,GLOUCESTER CC
Gloucester City Council,23UE,DOCKS COMPLEX - CATERING SERVS,RB110,CATERING PROVISIONS -FOOD,5110,2016-01-26,2016-01-25,SAINSBURYS SUPERMA,GLOUCESTER QU,REDACTED,471565******8223,5411,GROCERY STORES  SUPERMARKETS,42.43,Pound Sterling (826),1,42.43,Debit,74579156026007877850884,2016-02-02,GLOUCESTER CC
Gloucester City Council,23UE,DOCKS COMPLEX - CATERING SERVS,RB110,CATERING PROVISIONS -LIQUOR,5111,2016-01-26,2016-01-25,MAJESTIC WINE,GLOUCESTER,REDACTED,471565******8223,5921,PACKAGE STORES  BEER  LIQUOR,85.38,Pound Sterling (826),1,85.38,Debit,74579156026000771518533,2016-02-02,GLOUCESTER CC
Gloucester City Council,23UE,ENVIRONMENTAL PLANNING,LM340,CONFERENCE/MEETING EXPENSES,5510,2016-01-12,2016-01-11,TRAVELODGE WEBSITE,RESERVATION,REDACTED,471565******1326,3615,TRAVELODGE,119,Pound Sterling (826),1,119,Debit,74424716011298195317830,2016-02-02,GLOUCESTER CC
Gloucester City Council,23UE,HEALTH AND SAFETY,HD300,VOCATIONAL TRAINING,2970,2016-01-20,2016-01-19,TRAINLINE,03332 022 222,REDACTED,471565******8476,4112,PASSENGER RAILWAYS,90.27,Pound Sterling (826),1,90.27,Debit,74998866019602260485607,2016-02-02,GLOUCESTER CC
Gloucester City Council,23UE,HEALTH AND SAFETY,HD300,VOCATIONAL TRAINING,2970,2016-01-20,2016-01-19,PAYPAL *LOCALINFORM,35314369001,REDACTED,471565******8476,8398,CHARITABLE AND SOCIAL SERVICE ORGANIZATIONS,179.94,Pound Sterling (826),1,179.94,Debit,74998766019602185945810,2016-02-02,GLOUCESTER CC
Gloucester City Council,23UE,HEALTH AND SAFETY,HD300,VOCATIONAL TRAINING,2970,2016-01-20,2016-01-19,PAYPAL *LOCALINFORM,35314369001,REDACTED,471565******8476,8398,CHARITABLE AND SOCIAL SERVICE ORGANIZATIONS,179.94,Pound Sterling (826),1,179.94,Debit,74998766019602185877104,2016-02-02,GLOUCESTER CC
Gloucester City Council,23UE,CITY MUSEUM AND ART GALLERY,LM200,GENERAL REPAIR/MAINT BUILDINGS,3000,2016-01-07,2016-01-06,B & Q,GLOUCESTER GL,REDACTED,471565******9991,5211,LUMBER AND BUILDING MATERIALS STORES,67,Pound Sterling (826),1,67,Debit,74579156007007171546116,2016-02-02,GLOUCESTER CC
Gloucester City Council,23UE,CITY MUSEUM AND ART GALLERY,LM200,EXHIBITS AND COLLECTIONS,5038,2016-01-19,2016-01-18,Amazon UK Marketplace,800-279-6620,REDACTED,471565******9991,5942,BOOK STORES,16.44,Pound Sterling (826),1,16.44,Debit,74313226018000844066181,2016-02-02,GLOUCESTER CC
Gloucester City Council,23UE,CITY MUSEUM AND ART GALLERY,LM200,GENERAL REPAIR/MAINT BUILDINGS,3000,2016-01-19,2016-01-18,B & Q,GLOUCESTER GL,REDACTED,471565******9991,5211,LUMBER AND BUILDING MATERIALS STORES,28,Pound Sterling (826),1,28,Debit,74579156019004471043262,2016-02-02,GLOUCESTER CC
Gloucester City Council,23UE,ARTS EDUCATIONAL PROMOTIONS,LA610,EXHIBITS AND COLLECTIONS,5038,2016-01-20,2016-01-19,Amazon UK Marketplace,800-279-6620,REDACTED,471565******9991,5999,MISCELLANEOUS AND RETAIL STORES,12.2,Pound Sterling (826),1,12.2,Debit,74313226019000246589409,2016-02-02,GLOUCESTER CC
Gloucester City Council,23UE,FOLK MUSEUM,LM210,EVENTS,5952,2016-01-20,2016-01-19,MONSOON/ACCZ LTD,GLOUCESTE1356,REDACTED,471565******9991,5651,FAMILY CLOTHING STORES,14.1,Pound Sterling (826),1,14.1,Debit,74698176020000244598138,2016-02-02,GLOUCESTER CC
Gloucester City Council,23UE,FOLK MUSEUM,LM210,OTHER MINOR SUPPLIES SERVICES,5590,2016-01-21,2016-01-20,WWW.HATSANDCAPS.CO.UK,LONDON HA9,REDACTED,471565******9991,5699,MISCELLANEOUS APPAREL AND ACCESSORY STOR,45.9,Pound Sterling (826),1,45.9,Debit,74085326021469000983639,2016-02-02,GLOUCESTER CC
Gloucester City Council,23UE,CITY MUSEUM AND ART GALLERY,LM200,GENERAL REPAIR/MAINT BUILDINGS,3000,2016-02-01,2016-01-31,FACEBOOK RLKUV8NKW2,www.fb.me/ads,REDACTED,471565******9991,7311,ADVERTISING SERVICES,25,Pound Sterling (826),1,25,Debit,74987506031407142091535,2016-02-02,GLOUCESTER CC
Gloucester City Council,23UE,FOLK MUSEUM,LM210,GENERAL REPAIR/MAINT BUILDINGS,3000,2016-02-01,2016-01-31,FACEBOOK RLKUV8NKW2,www.fb.me/ads,REDACTED,471565******9991,7311,ADVERTISING SERVICES,25,Pound Sterling (826),1,25,Debit,74987506031407142091535,2016-02-02,GLOUCESTER CC
Gloucester City Council,23UE,FOLK MUSEUM,LM210,PUBLICATIONS FOR SALE,5064,2016-02-02,2016-02-01,WWW.LABELPLANET.CO.UK,INTERNET,REDACTED,471565******9991,5943,STATIONERY  OFFICE AND SCHOOL SUPPLY STO,39.6,Pound Sterling (826),1,39.6,Debit,74678586033090069939565,2016-02-02,GLOUCESTER CC
Gloucester City Council,23UE,GUILDHALL BAR AND CAF�,LA210,CATERING PROVISIONS -FOOD,5110,2016-01-05,2016-01-04,WM MORRISON STORE,575 GLOUCESTE,REDACTED,471565******2470,5411,GROCERY STORES  SUPERMARKETS,14.98,Pound Sterling (826),1,14.98,Debit,74579156005000771628329,2016-02-02,GLOUCESTER CC
Gloucester City Council,23UE,GUILDHALL BAR AND CAF�,LA210,CATERING PROVISIONS -FOOD,5110,2016-01-12,2016-01-11,SAINSBURYS SUPERMA,GLOUCESTER QU,REDACTED,471565******2470,5411,GROCERY STORES  SUPERMARKETS,20.9,Pound Sterling (826),1,20.9,Debit,74579156012005472243410,2016-02-02,GLOUCESTER CC
Gloucester City Council,23UE,GUILDHALL BAR AND CAF�,LA210,CATERING PROVISIONS -FOOD,5110,2016-01-14,2016-01-13,ASDA SUPERSTORE,GLOUCESTER,REDACTED,471565******2470,5411,GROCERY STORES  SUPERMARKETS,21.68,Pound Sterling (826),1,21.68,Debit,74698176014060198694869,2016-02-02,GLOUCESTER CC
Gloucester City Council,23UE,CITY MUSEUM CATERING,LM202,HIRE OF EQUIPMENT,5020,2016-01-14,2016-01-13,Amazon UK Marketplace,800-279-6620,REDACTED,471565******2470,5999,MISCELLANEOUS AND RETAIL STORES,36,Pound Sterling (826),1,36,Debit,74313226013000268575241,2016-02-02,GLOUCESTER CC
Gloucester City Council,23UE,GUILDHALL BAR AND CAF�,LA210 ,CATERING PROVISIONS -FOOD,5110,2016-01-22,2016-01-21,ALDI,GLOUCESTER,REDACTED,471565******2470,5411,GROCERY STORES  SUPERMARKETS,36.88,Pound Sterling (826),1,36.88,Debit,74019476022495000862898,2016-02-02,GLOUCESTER CC
Gloucester City Council,23UE,GUILDHALL BAR AND CAF�,LA210,CATERING PROVISIONS -FOOD,5110,2016-01-25,2016-01-24,WM MORRISON STORE,575 GLOUCESTE,REDACTED,471565******2470,5411,GROCERY STORES  SUPERMARKETS,14.41,Pound Sterling (826),1,14.41,Debit,74579156025003576438882,2016-02-02,GLOUCESTER CC
Gloucester City Council,23UE,GUILDHALL BAR AND CAF�,LA210,CATERING PROVISIONS -FOOD,5110,2016-01-26,2016-01-25,ICELAND,GLOUCESTER,REDACTED,471565******2470,5411,GROCERY STORES  SUPERMARKETS,21,Pound Sterling (826),1,21,Debit,74698166026040112215246,2016-02-02,GLOUCESTER CC
Gloucester City Council,23UE,GUILDHALL BAR AND CAF�,LA210,CATERING PROVISIONS -FOOD,5110,2016-01-27,2016-01-26,WM MORRISON STORE,575 GLOUCESTE,REDACTED,471565******2470,5411,GROCERY STORES  SUPERMARKETS,22.68,Pound Sterling (826),1,22.68,Debit,74579156027006377516036,2016-02-02,GLOUCESTER CC
Gloucester City Council,23UE,GUILDHALL BAR AND CAF�,LA210,HIRE OF EQUIPMENT,5020,2016-01-29,2016-01-28,B&M RETAIL LTD,HS GLOUCESTER,REDACTED,471565******2470,5310,DISCOUNT STORES,12.99,Pound Sterling (826),1,12.99,Debit,74579156029009477209054,2016-02-02,GLOUCESTER CC
Gloucester City Council,23UE,GUILDHALL BAR AND CAF�,LA210,CATERING PROVISIONS -FOOD,5110,2016-01-29,2016-01-28,ASDA SUPERSTORE,GLOUCESTER,REDACTED,471565******2470,5411,GROCERY STORES  SUPERMARKETS,68.75,Pound Sterling (826),1,68.75,Debit,74698176029070236679007,2016-02-02,GLOUCESTER CC
Gloucester City Council,23UE,GUILDHALL BAR AND CAF�,LA210,CATERING PROVISIONS -FOOD,5110,2016-02-01,2016-01-29,ICELAND,GLOUCESTER,REDACTED,471565******2470,5411,GROCERY STORES  SUPERMARKETS,6,Pound Sterling (826),1,6,Debit,74698166030080146378515,2016-02-02,GLOUCESTER CC
Gloucester City Council,23UE,GUILDHALL BAR AND CAF�,LA210,CATERING PROVISIONS -FOOD,5110,2016-02-01,2016-01-29,HOLLAND & BARRETT,GLOUCESTER,REDACTED,471565******2470,5999,MISCELLANEOUS AND RETAIL STORES,5.96,Pound Sterling (826),1,5.96,Debit,74579156030005770490372,2016-02-02,GLOUCESTER CC
Gloucester City Council,23UE,GUILDHALL BAR AND CAF�,LA210,CATERING PROVISIONS -FOOD,5110,2016-02-01,2016-01-31,ICELAND,GLOUCESTER,REDACTED,471565******2470,5411,GROCERY STORES  SUPERMARKETS,11,Pound Sterling (826),1,11,Debit,74698166032080845527600,2016-02-02,GLOUCESTER CC
Gloucester City Council,23UE,POLLUTION CONTROL,HE300,TRAVEL TICKETS,5077,2016-01-06,2016-01-05,TRAINLINE,RAIL TICKETS,REDACTED,471565******4841,4112,PASSENGER RAILWAYS,73.54,Pound Sterling (826),1,73.54,Debit,74998866005600987578866,2016-02-02,GLOUCESTER CC
Gloucester City Council,23UE,MEMBERS SUPPORT,RC300,PUBLIC TRANSPORTATION,4061,2016-01-12,2016-01-11,TRAINLINE,RAIL TICKETS,REDACTED,471565******4841,4112,PASSENGER RAILWAYS,172.38,Pound Sterling (826),1,172.38,Debit,74998866011601102368169,2016-02-02,GLOUCESTER CC
Gloucester City Council,23UE,VEHICLES,RS140,VEHICLE LICENCES,4015,2016-01-14,2016-01-13,WWW.DVLA.GOV.UK,VEHICLE LICEN,REDACTED,471565******4841,9399,GOVERNMENT SERVICES NOT ELSEWHERE CLASSIFIED,227.5,Pound Sterling (826),1,227.5,Debit,74579156014008176198565,2016-02-02,GLOUCESTER CC
Gloucester City Council,23UE,ECONOMIC DEVELOPMENT,FP300,PUBLIC TRANSPORTATION,4061,2016-01-14,2016-01-13,TRAINLINE,RAIL TICKETS,REDACTED,471565******4841,4112,PASSENGER RAILWAYS,161.16,Pound Sterling (826),1,161.16,Debit,74998866013601141753932,2016-02-02,GLOUCESTER CC
Gloucester City Council,23UE,TOURISM MARKETING,LT100,PUBLIC TRANSPORTATION,4061,2016-01-15,2016-01-14,TRAINLINE,RAIL TICKETS,REDACTED,471565******4841,4112,PASSENGER RAILWAYS,79.87,Pound Sterling (826),1,79.87,Debit,74998866014601163473889,2016-02-02,GLOUCESTER CC
Gloucester City Council,23UE,MANAGING DIRECTOR,RE100,PUBLIC TRANSPORTATION,4061,2016-01-18,2016-01-15,TRAINLINE,RAIL TICKETS,REDACTED,471565******4841,4112,PASSENGER RAILWAYS,78.03,Pound Sterling (826),1,78.03,Debit,74998866015602183562197,2016-02-02,GLOUCESTER CC
Gloucester City Council,23UE,POLLUTION CONTROL,HE300,TRAVEL TICKETS,5077,2016-01-19,2016-01-18,TRAINLINE,RAIL TICKETS,REDACTED,471565******4841,4112,PASSENGER RAILWAYS,73.54,Pound Sterling (826),1,73.54,Debit,74998866018602240272977,2016-02-02,GLOUCESTER CC
Gloucester City Council,23UE,MEMBERS SUPPORT,RC300,PUBLIC TRANSPORTATION,4061,2016-01-19,2016-01-18,TRAINLINE,RAIL TICKETS,REDACTED,471565******4841,4112,PASSENGER RAILWAYS,172.38,Pound Sterling (826),1,172.38,Debit,74998866018602240272571,2016-02-02,GLOUCESTER CC
Gloucester City Council,23UE,MEMBERS SUPPORT,RC300,PUBLIC TRANSPORTATION,4061,2016-01-21,2016-01-20,TRAINLINE,RAIL TICKETS,REDACTED,471565******4841,4112,PASSENGER RAILWAYS,-157.5,Pound Sterling (826),1,-157.5,Credit,74998866020602281260622,2016-02-02,GLOUCESTER CC
Gloucester City Council,23UE,EQUALITIES,EH102,PUBLIC TRANSPORTATION,4061,2016-01-21,2016-01-20,TRAINLINE,RAIL TICKETS,REDACTED,471565******4841,4112,PASSENGER RAILWAYS,20.04,Pound Sterling (826),1,20.04,Debit,74998866020602281253742,2016-02-02,GLOUCESTER CC
Gloucester City Council,23UE,MEMBERS SUPPORT,RC300,PUBLIC TRANSPORTATION,4061,2016-01-26,2016-01-25,TRAINLINE,RAIL TICKETS,REDACTED,471565******4841,4112,PASSENGER RAILWAYS,172.38,Pound Sterling (826),1,172.38,Debit,74998866025603375781668,2016-02-02,GLOUCESTER CC
Gloucester City Council,23UE,POLLUTION CONTROL,HE300,TRAVEL TICKETS,5077,2016-01-27,2016-01-26,TRAINLINE,RAIL TICKETS,REDACTED,471565******4841,4112,PASSENGER RAILWAYS,73.54,Pound Sterling (826),1,73.54,Debit,74998866026603396914560,2016-02-02,GLOUCESTER CC
Gloucester City Council,23UE,MANAGING DIRECTOR,RE100,PUBLIC TRANSPORTATION,4061,2016-01-27,2016-01-26,TRAINLINE,RAIL TICKETS,REDACTED,471565******4841,4112,PASSENGER RAILWAYS,172.38,Pound Sterling (826),1,172.38,Debit,74998866026603396913760,2016-02-02,GLOUCESTER CC
Gloucester City Council,23UE,FOOD SAFETY,HE100,PUBLIC TRANSPORTATION,4061,2016-01-29,2016-01-28,TRAINLINE,RAIL TICKETS,REDACTED,471565******4841,4112,PASSENGER RAILWAYS,165.75,Pound Sterling (826),1,165.75,Debit,74998866028603438860365,2016-02-02,GLOUCESTER CC
Gloucester City Council,23UE,MEMBERS SUPPORT,RC300,PUBLIC TRANSPORTATION,4061,2016-02-02,2016-02-01,TRAINLINE,RAIL TICKETS,REDACTED,471565******4841,4112,PASSENGER RAILWAYS,46.41,Pound Sterling (826),1,46.41,Debit,74998866032604521076095,2016-02-02,GLOUCESTER CC
Gloucester City Council,23UE,POLLUTION CONTROL,HE300,TRAVEL TICKETS,5077,2016-02-02,2016-02-01,TRAINLINE,RAIL TICKETS,REDACTED,471565******4841,4112,PASSENGER RAILWAYS,73.54,Pound Sterling (826),1,73.54,Debit,74998866032604521069090,2016-02-02,GLOUCESTER CC
Gloucester City Council,23UE,BLACKFRIARS,LA609,MAINTENANCE OF EQUIPMENT,5030,2016-01-06,2016-01-05,ARGOS LTD,GLOUCESTER,REDACTED,471565******6962,5310,DISCOUNT STORES,37.99,Pound Sterling (826),1,37.99,Debit,74579156006009979586188,2016-02-02,GLOUCESTER CC
Gloucester City Council,23UE,GLOUCESTER GUILDHALL,LA100,MAINTENANCE OF EQUIPMENT,5030,2016-01-06,2016-01-05,ARGOS LTD,GLOUCESTER,REDACTED,471565******6962,5310,DISCOUNT STORES,37.99,Pound Sterling (826),1,37.99,Debit,74579156006009979586188,2016-02-02,GLOUCESTER CC
Gloucester City Council,23UE,GUILDHALL EVENTS,LA200,FEES FOR SERVICES RECEIVED,5350,2016-01-06,2016-01-05,WRISTBANDS.CO.UK,1379872710,REDACTED,471565******6962,5699,MISCELLANEOUS APPAREL AND ACCESSORY STOR,192,Pound Sterling (826),1,192,Debit,74648926006130100998879,2016-02-02,GLOUCESTER CC
Gloucester City Council,23UE,GUILDHALL EVENTS,LA200,ADVERTISING AND PUBLICITY,5702,2016-01-08,2016-01-07,WWW.INSTANTPRINT.C,01709 382202,REDACTED,471565******6962,7338,QUICK-COPY AND REPRODUCTION SERVICES,27.99,Pound Sterling (826),1,27.99,Debit,74579156008009475333364,2016-02-02,GLOUCESTER CC
Gloucester City Council,23UE,GUILDHALL EVENTS,LA200,FEES FOR SERVICES RECEIVED,5350,2016-01-12,2016-01-11,MIPERMIT PARKING-DOM,INTERNET,REDACTED,471565******6962,7523,AUTOMOBILE PARKING LOTS AND GARAGES,10,Pound Sterling (826),1,10,Debit,74745106012040067499667,2016-02-02,GLOUCESTER CC
Gloucester City Council,23UE,GUILDHALL BAR AND CAF�,LA210,OPERATIONAL EQUIPMENT <5000,5012,2016-01-13,2016-01-12,ARGOS LTD,GLOUCESTER,REDACTED,471565******6962,5310,DISCOUNT STORES,50.44,Pound Sterling (826),1,50.44,Debit,74579156013006674573462,2016-02-02,GLOUCESTER CC
Gloucester City Council,23UE,GLOUCESTER GUILDHALL,LA100,HEALTH AND SAFETY,5360,2016-01-15,2016-01-14,CJSAFETY.CO.UK,01603 735010,REDACTED,471565******6962,5691,MEN'S AND WOMEN'S CLOTHING STORES,86.93,Pound Sterling (826),1,86.93,Debit,74579156015002375196453,2016-02-02,GLOUCESTER CC
Gloucester City Council,23UE,GLOUCESTER GUILDHALL,LA100,GENERAL REPAIR/MAINT BUILDINGS,3000,2016-01-15,2016-01-14,B & Q,GLOUCESTER GL,REDACTED,471565******6962,5211,LUMBER AND BUILDING MATERIALS STORES,69.33,Pound Sterling (826),1,69.33,Debit,74579156015003871995570,2016-02-02,GLOUCESTER CC
Gloucester City Council,23UE,GUILDHALL EVENTS,LA200,ADVERTISING AND PUBLICITY,5702,2016-01-15,2016-01-14,WWW.INSTANTPRINT.C,01709 382202,REDACTED,471565******6962,7338,QUICK-COPY AND REPRODUCTION SERVICES,18.99,Pound Sterling (826),1,18.99,Debit,74579156015001275465174,2016-02-02,GLOUCESTER CC
Gloucester City Council,23UE,GUILDHALL SOUND DESKS,LY059,CONTRACT PAYMENTS,0020,2016-01-18,2016-01-15,APPLE ONLINE STORE GBP,0845-600-1683,REDACTED,471565******6962,5732,ELECTRONIC SALES,359,Pound Sterling (826),1,359,Debit,74313226015000392212487,2016-02-02,GLOUCESTER CC
Gloucester City Council,23UE,GUILDHALL CINEMA,LA202,ADVERTISING AND PUBLICITY,5702,2016-01-19,2016-01-18,VISTAPR*VISTAPRINT.UK,080-00288251,REDACTED,471565******6962,2741,MISCELLANEOUS PUBLISHING & PRINTING,53.39,Pound Sterling (826),1,53.39,Debit,74745096019090234243635,2016-02-02,GLOUCESTER CC
Gloucester City Council,23UE,GLOUCESTER GUILDHALL,LA100,MAINTENANCE OF EQUIPMENT,5030,2016-01-21,2016-01-19,CPC,PRESTON,REDACTED,471565******6962,5065,ELECTRICAL PARTS AND EQUIPMENT,420.19,Pound Sterling (826),1,420.19,Debit,74830506019192185211258,2016-02-02,GLOUCESTER CC
Gloucester City Council,23UE,GLOUCESTER GUILDHALL,LA100,VOCATIONAL TRAINING,2970,2016-01-21,2016-01-19,TICKETWEB.CO.UK,LONDON,REDACTED,471565******6962,7922,THEATRICAL PRODUCERS (EXCEPT MOTION PICTURES)  TICKET AGENCIES,185,Pound Sterling (826),1,185,Debit,74579156020008673348079,2016-02-02,GLOUCESTER CC
Gloucester City Council,23UE,GUILDHALL SOUND DESKS,LY059,CONTRACT PAYMENTS,0020,2016-01-20,2016-01-19,CURRYS ONLINE,HEMEL HEMPSTE,REDACTED,471565******6962,5732,ELECTRONIC SALES,44.97,Pound Sterling (826),1,44.97,Debit,74698176020000194961666,2016-02-02,GLOUCESTER CC
Gloucester City Council,23UE,GLOUCESTER GUILDHALL,LA100,OPERATIONAL EQUIPMENT <5000,5012,2016-01-21,2016-01-20,Amazon UK Marketplace,800-279-6620,REDACTED,471565******6962,5999,MISCELLANEOUS AND RETAIL STORES,14.89,Pound Sterling (826),1,14.89,Debit,74313226020000851570576,2016-02-02,GLOUCESTER CC
Gloucester City Council,23UE,GUILDHALL SOUND DESKS,LY059,CONTRACT PAYMENTS,0020,2016-01-21,2016-01-20,STUDIO SPARES,0208 2089930,REDACTED,471565******6962,5732,ELECTRONIC SALES,29.57,Pound Sterling (826),1,29.57,Debit,74579156021008879929648,2016-02-02,GLOUCESTER CC
Gloucester City Council,23UE,BLACKFRIARS,LA609,OPERATIONAL EQUIPMENT <5000,5012,2016-01-21,2016-01-20,Amazon UK Marketplace,800-279-6620,REDACTED,471565******6962,5942,BOOK STORES,59,Pound Sterling (826),1,59,Debit,74313226020000774300069,2016-02-02,GLOUCESTER CC
Gloucester City Council,23UE,GUILDHALL SOUND DESKS,LY059,CONTRACT PAYMENTS,0020,2016-01-21,2016-01-20,ANDERTONS MUSIC,GUILDFORD,REDACTED,471565******6962,5733,MUSIC STORES-MUSICAL INSTRUMENTS  PIANOS  SHEET MUSIC,362.34,Pound Sterling (826),1,362.34,Debit,74579156021000371981672,2016-02-02,GLOUCESTER CC
Gloucester City Council,23UE,GLOUCESTER GUILDHALL,LA100,GENERAL REPAIR/MAINT BUILDINGS,3000,2016-01-22,2016-01-21,B & Q,GLOUCESTER GL,REDACTED,471565******6962,5211,LUMBER AND BUILDING MATERIALS STORES,53.97,Pound Sterling (826),1,53.97,Debit,74579156022005775194680,2016-02-02,GLOUCESTER CC
Gloucester City Council,23UE,BLACKFRIARS,LA609,CATERING PROVISIONS -FOOD,5110,2016-01-25,2016-01-22,ASDA SUPERSTORE,GLOUCESTER,REDACTED,471565******6962,5411,GROCERY STORES  SUPERMARKETS,5.98,Pound Sterling (826),1,5.98,Debit,74698176023030172541633,2016-02-02,GLOUCESTER CC
Gloucester City Council,23UE,GUILDHALL BAR AND CAF�,LA210,CATERING PROVISIONS -FOOD,5110,2016-01-25,2016-01-23,TESCO STORES (6819),GLOUCESTER,REDACTED,471565******6962,5411,GROCERY STORES  SUPERMARKETS,1,Pound Sterling (826),1,1,Debit,74698086024030570490847,2016-02-02,GLOUCESTER CC
Gloucester City Council,23UE,GUILDHALL BAR AND CAF�,LA210,CATERING PROVISIONS -FOOD,5110,2016-01-25,2016-01-23,TESCO STORES 6819,GLOUCESTER,REDACTED,471565******6962,5411,GROCERY STORES  SUPERMARKETS,11.93,Pound Sterling (826),1,11.93,Debit,74698166024030570486712,2016-02-02,GLOUCESTER CC
Gloucester City Council,23UE,GUILDHALL CINEMA,LA202,ADVERTISING AND PUBLICITY,5702,2016-01-28,2016-01-27,WWW.INSTANTPRINT.C,01709 382202,REDACTED,471565******6962,7338,QUICK-COPY AND REPRODUCTION SERVICES,21.99,Pound Sterling (826),1,21.99,Debit,74579156028008774608050,2016-02-02,GLOUCESTER CC
Gloucester City Council,23UE,GLOUCESTER GUILDHALL,LA100,FEES FOR SERVICES RECEIVED,5350,2016-02-01,2016-01-29,MIPERMIT PARKING-DOM,INTERNET,REDACTED,471565******6962,7523,AUTOMOBILE PARKING LOTS AND GARAGES,40,Pound Sterling (826),1,40,Debit,74745106030080079789000,2016-02-02,GLOUCESTER CC
Gloucester City Council,23UE,GUILDHALL EVENTS,LA200,ADVERTISING AND PUBLICITY,5702,2016-02-01,2016-01-31,FACEBOOK HPB239ED72,www.fb.me/ads,REDACTED,471565******6962,7311,ADVERTISING SERVICES,19.87,Pound Sterling (826),1,19.87,Debit,74987506031372462981238,2016-02-02,GLOUCESTER CC
Gloucester City Council,23UE,GLOUCESTER GUILDHALL,LA100,FEES FOR SERVICES RECEIVED,5350,2016-02-02,2016-02-01,MIPERMIT PARKING-DOM,INTERNET,REDACTED,471565******6962,7523,AUTOMOBILE PARKING LOTS AND GARAGES,20,Pound Sterling (826),1,20,Debit,74745106033090070495983,2016-02-02,GLOUCESTER CC
Gloucester City Council,23UE,BUSINESS TRANSFORMATION & TECH,RT700,INTERNET SERVICE PROVIDER FEES,5429,2016-01-06,2016-01-05,123 REG R/T,8712309525,REDACTED,471565******3318,5968,CONTINUITY/SUBSCRIPTION MERCHANTS,12.56,Pound Sterling (826),1,12.56,Debit,74056576006031000101721,2016-02-02,GLOUCESTER CC
Gloucester City Council,23UE,BUSINESS TRANSFORMATION & TECH,RT700,COMPUTER CONSUMABLES,5422,2016-01-08,2016-01-07,CRUCIAL.COM,800-013-0330,REDACTED,471565******3318,5045,COMPUTERS COMPUTER PERIPHERAL EQUIPMENT  SOFTWARE,3.2,Pound Sterling (826),1,3.2,Debit,74313226007000519521505,2016-02-02,GLOUCESTER CC
Gloucester City Council,23UE,BUSINESS TRANSFORMATION & TECH,RT700,COMPUTER CONSUMABLES,5422,2016-01-08,2016-01-07,CRUCIAL.COM,800-013-0330,REDACTED,471565******3318,5045,COMPUTERS COMPUTER PERIPHERAL EQUIPMENT  SOFTWARE,15.99,Pound Sterling (826),1,15.99,Debit,74313226007000519522743,2016-02-02,GLOUCESTER CC
Gloucester City Council,23UE,BUSINESS PLANNING & PERFORMANC,RL500,FEES FOR SERVICES RECEIVED,5350,2016-01-18,2016-01-16,Amazon UK Retail,AMAZON.CO.UK,REDACTED,471565******3318,5969,ALL OTHER DIRECT MARKETERS,9.98,Pound Sterling (826),1,9.98,Debit,74313226016000759870082,2016-02-02,GLOUCESTER CC
Gloucester City Council,23UE,BUSINESS PLANNING & PERFORMANC,RL500,FEES FOR SERVICES RECEIVED,5350,2016-01-18,2016-01-16,Amazon UK Marketplace,800-279-6620,REDACTED,471565******3318,5999,MISCELLANEOUS AND RETAIL STORES,2.81,Pound Sterling (826),1,2.81,Debit,74313226016000797762622,2016-02-02,GLOUCESTER CC
Gloucester City Council,23UE,BUSINESS PLANNING & PERFORMANC,RL500,FEES FOR SERVICES RECEIVED,5350,2016-01-25,2016-01-21,RADISSION BLU EDWA,MANCHESTER,REDACTED,471565******3318,7011,LODGING  HOTELS  MOTELS  RESORTS,12,Pound Sterling (826),1,12,Debit,74579156023004576554225,2016-02-02,GLOUCESTER CC
Gloucester City Council,23UE,CLIENT REVS & BENS CONTRACT,RT240,COURT FEES,5358,2016-01-12,2016-01-11,HMCOURTS-SERVICE.G,1452420100,REDACTED,471565******5409,9222,FINES,591,Pound Sterling (826),1,591,Debit,74579156012009377226769,2016-02-02,GLOUCESTER CC
Gloucester City Council,23UE,INHOUSE TRAINING,EH200,VOCATIONAL TRAINING,2970,2016-01-20,2016-01-19,WWW.CIPS.ORG,0845 8801188,REDACTED,471565******5409,8699,MEMBERSHIP ORGANIZATIONS NOT ELSEWHERE CLASSIFIED,118.32,Pound Sterling (826),1,118.32,Debit,74579156020007878433686,2016-02-02,GLOUCESTER CC
